{"text_format":"2","workbook":"xlsx","n_sheets":1,"sheets":["Tabelle1"],"not_rendered":{"charts":0,"images":0,"macros":0,"external_links":0,"defined_names":0,"comments":0,"pivot_tables":0},"unopened":[],"bounds":{"document_bytes":16777216,"sheet_cells":100000,"run_cost":"one","rows_first":2000,"rows_last":500,"rows_between":2000,"halvings":0,"cell_chars":16384,"cell_head_chars":4096},"cells_cut":0,"cells_raw":0,"read":"whole","date_system":"1900"}

{"sheet":"Tabelle1","index":0,"n_rows":109,"n_cols":5,"rows_kept":109,"cut":false,"hidden":false,"merged":[]}
["Notenberechnung Master Informatik"]
[]
["Regeln für Wahlpflichtmodule, insgesamt 60 ECTS (wird hier nicht geprüft):"]
["· aus mind. drei Säulen: pro Säule mindestens 10 ECTS, höchstens 30 ECTS"]
["· bei Modulen aus vier Säulen: Untergrenze von 10 ECTS kann in einer Säule unterschritten werden"]
["· in mind. 2 Vertiefungsrichtungen mind. 15 ECTS"]
[]
["Hinweise zum Programm:"]
["· ECTS-Punkte können eingegeben werden; gewertet wird erst, sobald eine Note eingetragen ist (Noten werden nicht geprüft, alles fließt ein)"]
["· Endnote und Gesamtnoten der Säulen werden auf die erste Nachkommastelle geschnitten"]
["· Punktegrenzen (in den Säulen und gesamt) werden nicht geprüft – wenn ein Fach nicht einfließen soll → 0 ECTS!"]
["· Trotz bestem Wissen und Gewissen: Keine Garantie, dass alles fehlerfrei ist :-)"]
[]
["Übersicht Master (120 ECTS)"]
[null,null,null,"ECTS-Punkte","Note"]
["Theorie-Säule",null,null,{"$f":"D42","v":0},{"$f":"E42","v":"n.a."}]
["Softwareorientiert",null,null,{"$f":"D57","v":0},{"$f":"E57","v":"n.a."}]
["Systemorientiert",null,null,{"$f":"D72","v":0},{"$f":"E72","v":"n.a."}]
["Anwendungsorientiert",null,null,{"$f":"D87","v":0},{"$f":"E87","v":"n.a."}]
["Wahlpflichtbereich",null,null,{"$f":"SUM(D16:D19)","v":0},{"$f":"IF(D20=0,\"n.a.\",TRUNC(((IF(E16<>\"n.a.\",D16*E16,0) + IF(E17<>\"n.a.\",D17*E17,0) + IF(E18<>\"n.a.\",D18*E18,0) + IF(E19<>\"n.a.\",D19*E19,0))/D20),1))","v":"n.a."}]
["Nebenfach",null,null,{"$f":"D101","v":0},{"$f":"E101","v":"n.a."}]
["Projekt",null,null,10]
["Seminar",null,null,5]
["Masterarbeit",null,null,{"$f":"D109","v":0},{"$f":"E109","v":"n.a."}]
[]
["Gesamt Master:",null,null,{"$f":"D20 + D21 + IF(E22<>0,10,0) + IF(E23<>0,5,0)  + D24","v":0},{"$f":"IF(D26=0,\"n.a.\",TRUNC(((IF(E20<>\"n.a.\",D20*E20,0) + IF(E21<>\"n.a.\",D21*E21,0) + IF(E22<>0,D22*E22,0) + IF(E23<>0,D23*E23,0) + IF(E24<>\"n.a.\",D24*E24,0))/D26),1))","v":"n.a."}]
[]
[]
["Säule der theoretisch orientierten Vertiefungsrichtungen"]
[null,null,null,"ECTS-Punkte","Note"]
["Modul 1",null,null,0]
["Modul 2",null,null,0]
["Modul 3",null,null,0]
["Modul 4",null,null,0]
["Modul 5",null,null,0]
["Modul 6",null,null,0]
["Modul 7",null,null,0]
["Modul 8",null,null,0]
["Modul 9",null,null,0]
["Modul 10",null,null,0]
[]
["Gesamt Theorie-Säule:",null,null,{"$f":"IF(E31<>0,D31,0) + IF(E32<>0,D32,0) + IF(E33<>0,D33,0) + IF(E34<>0,D34,0) + IF(E35<>0,D35,0) + IF(E36<>0,D36,0)  + IF(E37<>0,D37,0) + IF(E38<>0,D38,0) + IF(E39<>0,D39,0) + IF(E40<>0,D40,0)","v":0},{"$f":"IF(D42=0,\"n.a.\",TRUNC(((D31*E31 + D32*E32 + D33*E33 + D34*E34 + D35*E35 + D36*E36 + D37*E37 + D38*E38 + D39*E39 + D40*E40)/D42),1))","v":"n.a."}]
[]
["Säule der softwareorientierten Vertiefungsrichtungen"]
[null,null,null,"ECTS-Punkte","Note"]
["Modul 1",null,null,0]
["Modul 2",null,null,0]
["Modul 3",null,null,0]
["Modul 4",null,null,0]
["Modul 5",null,null,0]
["Modul 6",null,null,0]
["Modul 7",null,null,0]
["Modul 8",null,null,0]
["Modul 9",null,null,0]
["Modul 10",null,null,0]
[]
["Gesamt softwareorientierte Säule:",null,null,{"$f":"IF(E46<>0,D46,0) + IF(E47<>0,D47,0) + IF(E48<>0,D48,0) + IF(E49<>0,D49,0) + IF(E50<>0,D50,0) + IF(E51<>0,D51,0)  + IF(E52<>0,D52,0) + IF(E53<>0,D53,0) + IF(E54<>0,D54,0) + IF(E55<>0,D55,0)","v":0},{"$f":"IF(D57=0,\"n.a.\",TRUNC(((D46*E46 + D47*E47 + D48*E48 + D49*E49 + D50*E50 + D51*E51 + D52*E52 + D53*E53 + D54*E54 + D55*E55)/D57),1))","v":"n.a."}]
[]
["Säule der systemorientierten Vertiefungsrichtungen"]
[null,null,null,"ECTS-Punkte","Note"]
["Modul 1",null,null,0]
["Modul 2",null,null,0]
["Modul 3",null,null,0]
["Modul 4",null,null,0]
["Modul 5",null,null,0]
["Modul 6",null,null,0]
["Modul 7",null,null,0]
["Modul 8",null,null,0]
["Modul 9",null,null,0]
["Modul 10",null,null,0]
[]
["Gesamt systemorientierte Säule:",null,null,{"$f":"IF(E61<>0,D61,0) + IF(E62<>0,D62,0) + IF(E63<>0,D63,0) + IF(E64<>0,D64,0) + IF(E65<>0,D65,0) + IF(E66<>0,D66,0)  + IF(E67<>0,D67,0) + IF(E68<>0,D68,0) + IF(E69<>0,D69,0) + IF(E70<>0,D70,0)","v":0},{"$f":"IF(D72=0,\"n.a.\",TRUNC(((D61*E61 + D62*E62 + D63*E63 + D64*E64 + D65*E65 + D66*E66 + D67*E67 + D68*E68 + D69*E69 + D70*E70)/D72),1))","v":"n.a."}]
[]
["Säule der anwendungsorientierten Vertiefungsrichtungen"]
[null,null,null,"ECTS-Punkte","Note"]
["Modul 1",null,null,0]
["Modul 2",null,null,0]
["Modul 3",null,null,0]
["Modul 4",null,null,0]
["Modul 5",null,null,0]
["Modul 6",null,null,0]
["Modul 7",null,null,0]
["Modul 8",null,null,0]
["Modul 9",null,null,0]
["Modul 10",null,null,0]
[]
["Gesamt anwendungsorientierte Säule:",null,null,{"$f":"IF(E76<>0,D76,0) + IF(E77<>0,D77,0) + IF(E78<>0,D78,0) + IF(E79<>0,D79,0) + IF(E80<>0,D80,0) + IF(E81<>0,D81,0)  + IF(E82<>0,D82,0) + IF(E83<>0,D83,0) + IF(E84<>0,D84,0) + IF(E85<>0,D85,0)","v":0},{"$f":"IF(D87=0,\"n.a.\",TRUNC(((D76*E76 + D77*E77 + D78*E78 + D79*E79 + D80*E80 + D81*E81 + D82*E82 + D83*E83 + D84*E84 + D85*E85)/D87),1))","v":"n.a."}]
[]
[]
["Nebenfach (Soll: 15 ECTS)"]
[null,null,null,"ECTS-Punkte","Note"]
["Modul 1",null,null,0]
["Modul 2",null,null,0]
["Modul 3",null,null,0]
["Modul 4",null,null,0]
["Modul 5",null,null,0]
["Modul 6",null,null,0]
["Modul 7",null,null,0]
["Modul 8",null,null,0]
[]
["Gesamt Nebenfach:",null,null,{"$f":"IF(E92<>0,D92,0) + IF(E93<>0,D93,0) + IF(E94<>0,D94,0) + IF(E95<>0,D95,0) + IF(E96<>0,D96,0)  + IF(E97<>0,D97,0) + IF(E98<>0,D98,0) + IF(E99<>0,D99,0)","v":0},{"$f":"IF(D101=0,\"n.a.\",TRUNC(((D92*E92 + D93*E93 + D94*E94 + D95*E95 + D96*E96 + D97*E97 + D98*E98 + D99*E99)/D101),1))","v":"n.a."}]
[]
[]
["Masterarbeit"]
[null,null,null,"ECTS-Punkte","Note"]
["Masterarbeit",null,null,27]
["Begleitseminar zur Masterarbeit",null,null,3]
[]
["Gesamt Masterarbeit:",null,null,{"$f":"IF(E106<>0,D106,0) + IF(E107<>0,D107,0)","v":0},{"$f":"IF(D109=0,\"n.a.\",TRUNC(((D106*E106 + D107*E107)/D109),1))","v":"n.a."}]